bitfinex/quotes_BTCUSD_20240815
["timestamp","ask_amount","ask_price","bid_price","bid_amount"]
[1723750723718,0.87929,56864.0,56863.0,0.00818]
[1723750723927,1.05084454,56864.0,56863.0,0.00818]
[1723750724127,1.40256054,56864.0,56863.0,0.00818]
[1723750724772,1.05084454,56864.0,56863.0,0.00818]
[1723750725190,1.42556054,56864.0,56863.0,0.00818]
[1723750725397,1.59306054,56864.0,56863.0,0.00818]
[1723750725602,2.06066531,56864.0,56863.0,0.00818]
[1723750726040,2.07466531,56864.0,56863.0,0.00818]
[1723750726673,1.231135,56858.0,56857.0,0.00818]
[1723750726875,1.40268954,56858.0,56857.0,0.00818]
[1723750727506,0.014,56864.0,56858.0,0.1969]
[1723750727711,0.189858,56864.0,56863.0,0.08577727]
[1723750727916,0.541576,56864.0,56863.0,0.08577727]
[1723750728121,0.014,56864.0,56863.0,0.08577727]
[1723750728324,0.541574,56864.0,56863.0,0.08577727]
[1723750728561,0.879367,56859.0,56858.0,0.1969]
[1723750729057,0.175873,56859.0,56858.0,0.1969]
[1723750729253,0.52762,56859.0,56858.0,0.1969]
[1723750729459,0.879367,56859.0,56858.0,0.1969]
[1723750730069,1.05092154,56859.0,56858.0,0.1969]
[1723750730289,1.05092154,56859.0,56857.0,0.00818]
[1723750730290,0.879382,56858.0,56857.0,0.00818]
[1723750730490,1.89333017,56858.0,56857.0,0.00818]
[1723750730906,0.54351663,56858.0,56857.0,0.00818]
[1723750731107,0.527629,56858.0,56857.0,0.00818]
[1723750731319,1.231135,56858.0,56857.0,0.09395727]
[1723750731532,1.77744254,56858.0,56857.0,0.00818]
[1723750731728,1.42568954,56858.0,56857.0,0.00818]
[1723750732179,1.44157785,56858.0,56857.0,0.00818]
[1723750732648,1.45257785,56858.0,56857.0,0.00818]
[1723750732852,1.44157785,56858.0,56857.0,0.00818]
[1723750733066,2.55178385,56858.0,56857.0,0.00818]
[1723750733265,2.85892536,56858.0,56857.0,0.00818]
[1723750733489,2.46264254,56858.0,56857.0,0.00818]
[1723750733695,2.33967399,56858.0,56857.0,0.00818]
[1723750734785,2.29514254,56858.0,56857.0,0.00818]
[1723750735048,1.93299101,56858.0,56857.0,0.00818]
[1723750735698,1.58123801,56858.0,56857.0,0.00818]
[1723750735919,1.45258499,56858.0,56857.0,0.00818]
[1723750736149,2.15609099,56858.0,56857.0,0.00818]
[1723750736364,2.15609099,56858.0,56856.0,0.00818]
[1723750736365,1.231156,56857.0,56856.0,0.00818]
[1723750736597,1.57026129,56857.0,56856.0,0.00818]
[1723750736829,1.92201593,56857.0,56856.0,5.7e-07]
[1723750737808,1.92203211,56857.0,56856.0,5.7e-07]
[1723750738046,1.92203211,56857.0,56823.0,0.1819]
[1723750738047,0.175944,56836.0,56823.0,0.1819]
[1723750738250,1.0671759,56836.0,56823.0,0.1819]
[1723750738482,1.54772831,56836.0,56823.0,0.1819]
[1723750738707,1.52616554,56836.0,56823.0,0.1819]
[1723750738915,1.57073087,56836.0,56823.0,0.1819]
[1723750739114,1.47073087,56836.0,56823.0,0.1819]
[1723750739258,1.41906596,56836.0,56823.0,0.1819]
[1723750739697,1.41716554,56836.0,56823.0,0.1819]
[1723750739936,1.43306776,56836.0,56823.0,0.1819]
[1723750740130,0.189944,56836.0,56835.0,0.41452]
[1723750740346,0.189944,56836.0,56835.0,0.646272]
[1723750740347,0.014,56836.0,56835.0,0.646272]
[1723750740563,0.014,56836.0,56835.0,0.60482]
[1723750741038,1.40316554,56836.0,56835.0,0.00082]
[1723750741268,1.42334554,56836.0,56835.0,0.00082]
[1723750741478,1.43925055,56836.0,56835.0,0.00082]
[1723750741709,1.42725055,56836.0,56835.0,0.00082]
[1723750741944,1.78513743,56836.0,56835.0,0.00082]
[1723750742162,1.9308058,56836.0,56835.0,0.00082]
[1723750742584,1.9428058,56836.0,56835.0,0.00082]
[1723750744127,1.9428058,56836.0,56827.0,0.00821]
[1723750744128,2.165825,56828.0,56827.0,0.00821]
[1723750744362,2.5049508,56828.0,56827.0,0.00821]
[1723750744580,2.47628243,56828.0,56827.0,0.00821]
[1723750744842,2.82822143,56828.0,56827.0,0.00821]
[1723750745094,2.85688495,56828.0,56827.0,0.00821]
[1723750745347,2.85688495,56828.0,56804.0,0.3837]
[1723750745348,0.1,56795.0,56788.0,0.00819]
[1723750745621,0.88045,56789.0,56788.0,0.00819]
[1723750745833,1.23263,56789.0,56788.0,0.00819]
[1723750746452,1.25563,56789.0,56788.0,0.00819]
[1723750746456,0.05939801,56812.0,56788.0,0.00819]
[1723750746660,0.52313,56804.0,56803.0,0.08577727]
[1723750746822,0.34259754,56804.0,56803.0,0.67147727]
[1723750747173,1.39885854,56804.0,56803.0,0.27397727]
[1723750747388,0.171043,56804.0,56803.0,0.27397727]
[1723750747612,0.00821,56816.0,56803.0,0.27397727]
[1723750747825,0.00821,56816.0,56815.0,0.08577727]
[1723750748031,0.176025,56810.0,56809.0,0.08577727]
[1723750748246,0.17604,56805.0,56804.0,0.3975]
[1723750748468,0.528121,56805.0,56804.0,0.3975]
[1723750748679,0.880202,56805.0,56804.0,0.3975]
[1723750748943,0.00801087,56816.0,56804.0,0.5857]
[1723750749174,0.51466362,56851.0,56821.0,0.351982]
[1723750749416,0.175918,56845.0,56835.0,0.276]
[1723750749623,0.351846,56844.0,56835.0,0.4642]
[1723750749838,0.351846,56844.0,56823.0,0.08577727]
[1723750749839,0.175874,56859.0,56845.0,0.175915]
[1723750750053,0.351753,56858.0,56847.0,0.1882]
[1723750750271,0.351753,56858.0,56835.0,0.351892]
[1723750750272,0.000902,56864.0,56857.0,0.60044089]
[1723750750481,0.000902,56864.0,56851.0,0.08577727]
[1723750750482,0.175873,56859.0,56858.0,0.5857]
[1723750750691,0.175868,56861.0,56858.0,0.5857]
[1723750750895,0.175873,56859.0,56858.0,0.5857]
[1723750751110,0.879367,56859.0,56858.0,0.5857]
[1723750751319,0.004,56858.0,56842.0,0.5857]
[1723750751567,0.351815,56848.0,56842.0,0.5857]
[1723750751766,0.175923,56843.0,56842.0,0.5857]
[1723750752186,0.527769,56843.0,56842.0,0.5857]
[1723750752396,0.17155454,56856.0,56835.0,0.1882]
[1723750752397,0.351889,56836.0,56835.0,0.1882]
[1723750752605,0.175929,56841.0,56840.0,0.08577727]
[1723750752808,1.05119954,56841.0,56840.0,0.08577727]
[1723750753016,0.69934154,56841.0,56840.0,0.08577727]
[1723750753236,0.69934154,56841.0,56835.0,0.1882]
[1723750753237,0.879722,56836.0,56835.0,0.1882]
[1723750753431,0.879722,56836.0,56826.0,0.1859]
[1723750753432,0.175972,56827.0,56826.0,0.1859]
[1723750754308,0.351922,56831.0,56826.0,0.1859]
[1723750754514,0.35192,56831.0,56830.0,0.08577727]
[1723750754727,0.35192,56831.0,56826.0,0.1859]
[1723750754728,0.351919,56832.0,56826.0,0.1859]
[1723750754935,0.175961,56831.0,56826.0,0.1859]
[1723750755157,0.175972,56827.0,56826.0,0.1859]
[1723750755357,0.175991,56821.0,56820.0,0.1887]
[1723750755568,0.001,56827.0,56820.0,0.1887]
[1723750755569,0.175986,56823.0,56820.0,0.1887]
[1723750755775,0.001,56827.0,56826.0,0.08577727]
[1723750756621,0.001,56827.0,56826.0,0.47527727]
[1723750757455,0.351921,56831.0,56826.0,0.47527727]
[1723750757684,0.175968,56829.0,56826.0,0.47527727]
[1723750757892,0.175972,56827.0,56826.0,0.47527727]
[1723750758104,0.175991,56821.0,56820.0,0.1887]
[1723750758311,0.175991,56821.0,56820.0,0.18952]
[1723750758312,0.69952754,56821.0,56820.0,0.18952]
[1723750758529,1.05150954,56821.0,56820.0,0.18952]
[1723750758737,0.17155454,56821.0,56820.0,0.18952]
[1723750759146,0.69952754,56821.0,56820.0,0.18952]
[1723750759359,1.05150954,56821.0,56820.0,0.18952]
[1723750759774,1.40349154,56821.0,56820.0,0.18952]
[1723750759976,1.05150954,56821.0,56820.0,0.18952]
[1723750760109,1.05150954,56821.0,56820.0,0.00082]
[1723750761312,1.42649154,56821.0,56820.0,0.00082]
[1723750761580,0.34854554,56821.0,56820.0,6e-08]
[1723750761776,0.34754554,56821.0,56820.0,6e-08]
[1723750762195,0.70052754,56821.0,56820.0,6e-08]
[1723750762397,1.05250954,56821.0,56820.0,6e-08]
[1723750762609,0.17155454,56821.0,56820.0,6e-08]
[1723750762823,0.175962,56831.0,56821.0,0.1812]
[1723750763021,0.175962,56831.0,56830.0,0.08577727]
[1723750763022,0.527881,56831.0,56830.0,0.08577727]
[1723750763227,0.3864,56841.0,56830.0,0.08577727]
[1723750763228,0.175948,56835.0,56830.0,0.08577727]
[1723750763440,0.1675,56850.0,56830.0,0.08577727]
[1723750763441,0.3864,56851.0,56840.0,0.08577727]
[1723750763635,0.265,56871.0,56851.0,0.08577727]
[1723750763636,0.175895,56852.0,56851.0,0.08577727]
[1723750763864,0.175891,56854.0,56851.0,0.08577727]
[1723750764099,0.17155454,56854.0,56851.0,0.08577727]
[1723750764300,0.175895,56852.0,56851.0,0.08577727]
[1723750764724,0.17155454,56854.0,56851.0,0.08577727]
[1723750764934,0.000902,56856.0,56852.0,0.4125]
[1723750765140,0.014,56854.0,56852.0,0.4125]
[1723750765355,0.014,56854.0,56853.0,0.1812]
[1723750765562,0.000902,56856.0,56853.0,0.1812]
[1723750765982,0.175889,56854.0,56853.0,0.1812]
[1723750766194,0.175889,56854.0,56846.0,0.26967727]
[1723750766195,0.527731,56847.0,56846.0,0.26967727]
[1723750766404,0.527731,56847.0,56830.0,0.08577727]
[1723750766405,0.527731,56847.0,56839.0,0.1839]
[1723750766406,0.527787,56841.0,56839.0,0.1839]
[1723750766627,0.527796,56840.0,56839.0,0.1839]
[1723750766836,0.69935054,56840.0,56839.0,0.1839]
[1723750767055,0.351836,56845.0,56839.0,0.1839]
[1723750767296,0.34747054,56845.0,56844.0,0.08577727]
[1723750767903,0.69930354,56845.0,56844.0,0.08577727]
[1723750768105,0.536796,56840.0,56839.0,0.1839]
[1723750768305,0.536796,56840.0,56838.0,0.08577727]
[1723750768306,0.879677,56839.0,56838.0,0.08577727]
[1723750769031,0.527806,56839.0,56838.0,0.08577727]
[1723750769281,0.175935,56839.0,56838.0,0.08577727]
[1723750769480,0.18055454,56840.0,56838.0,0.08577727]
[1723750769944,0.351871,56839.0,56838.0,0.08577727]
[1723750770143,0.527806,56839.0,56838.0,0.08577727]
[1723750770281,0.175935,56839.0,56838.0,0.08577727]
[1723750770498,0.527806,56839.0,56838.0,0.08577727]
[1723750771724,0.007,56839.0,56838.0,0.08577727]
[1723750771925,0.175935,56839.0,56838.0,0.08577727]
[1723750772150,0.176835,56840.0,56838.0,0.08577727]
[1723750772353,0.892677,56839.0,56838.0,0.08577727]
[1723750772752,0.879677,56839.0,56838.0,0.08577727]
[1723750772952,0.892677,56839.0,56838.0,0.08577727]
[1723750774308,0.879677,56839.0,56838.0,0.08577727]
[1723750774715,0.892677,56839.0,56838.0,0.08577727]
[1723750774918,0.527806,56839.0,56838.0,0.08577727]
[1723750775123,0.17245654,56840.0,56839.0,1.103306]
[1723750775124,0.000902,56840.0,56839.0,1.103306]
[1723750775257,0.000902,56856.0,56841.0,0.4032]
[1723750775460,0.000902,56856.0,56855.0,0.08577727]
[1723750775684,0.528549,56856.0,56855.0,0.08577727]
[1723750776599,0.528549,56856.0,56855.0,0.68077727]
[1723750776600,0.000902,56856.0,56855.0,0.68077727]
[1723750777809,0.010902,56856.0,56855.0,0.70287171]
[1723750778224,0.000902,56856.0,56855.0,0.70287171]
[1723750778421,0.005902,56856.0,56855.0,0.70287171]
[1723750778621,0.000902,56856.0,56855.0,0.68077727]
[1723750779041,0.1,56879.0,56855.0,0.68077727]
[1723750779042,0.00902001,56890.0,56889.0,0.17578]
[1723750779384,0.10992754,56897.0,56889.0,0.17578]
[1723750779385,0.0827331,56918.0,56891.0,0.00902001]
[1723750779523,0.51466362,56935.0,56920.0,0.175685]
[1723750779696,0.0009009,56948.0,56920.0,0.175685]
[1723750779906,0.0009009,56948.0,56920.0,1.46632405]
[1723750780113,0.0009009,56948.0,56920.0,1.81769405]
[1723750780287,0.0009009,56948.0,56921.0,0.5966]
[1723750780500,0.0009009,56948.0,56947.0,0.175601]
[1723750780699,0.0009009,56948.0,56947.0,0.2341794]
[1723750781017,0.00734312,56950.0,56949.0,0.526786]
[1723750781451,0.00734312,56950.0,56946.0,0.547609]
[1723750781452,0.00734312,56950.0,56946.0,0.1964]
[1723750781625,0.00734312,56950.0,56946.0,0.372003]
[1723750781803,0.00734312,56950.0,56946.0,0.1964]
[1723750782005,0.00734312,56950.0,56949.0,0.526786]
[1723750782206,0.00734312,56950.0,56949.0,0.69834054]
[1723750782630,0.00734312,56950.0,56949.0,1.04953154]
[1723750782891,0.00042861,56954.0,56953.0,1.229081]
[1723750783011,0.00042861,56954.0,56953.0,1.31446954]
[1723750783219,0.00042861,56954.0,56953.0,1.13485808]
[1723750783817,0.00042861,56954.0,56953.0,1.83719008]
[1723750784020,0.009031,56968.0,56957.0,0.877855]
[1723750784173,0.009031,56968.0,56963.0,1.58549381]
[1723750784427,0.00902001,56972.0,56963.0,1.58549381]
[1723750784428,0.00902001,56972.0,56971.0,0.590527]
[1723750784608,0.00902001,56972.0,56971.0,1.54996881]
[1723750784943,0.00902001,56972.0,56971.0,0.58655454]
[1723750785146,0.00902001,56972.0,56964.0,0.1834]
[1723750785147,0.00902001,56972.0,56964.0,0.5984]
[1723750785288,0.00902001,56972.0,56971.0,0.08577727]
[1723750785493,0.00902001,56972.0,56971.0,0.78391381]
[1723750785689,0.00011,56982.0,56971.0,0.78391381]
[1723750785690,0.00011,56982.0,56981.0,0.175497]
[1723750785905,0.00011,56982.0,56981.0,1.10109171]
[1723750786185,0.00011,56982.0,56981.0,1.45208571]
[1723750786350,0.00011,56982.0,56981.0,1.97463425]
[1723750786781,0.00011,56982.0,56981.0,2.26053425]
[1723750786982,0.009031,56994.0,56981.0,1.03405525]
[1723750787185,0.009031,56994.0,56993.0,0.08577727]
[1723750787345,0.009031,56994.0,56993.0,0.43279181]
[1723750787522,0.009031,56994.0,56993.0,0.33605433]
[1723750787725,0.009031,56994.0,56993.0,0.25733181]
[1723750787925,0.009031,56994.0,56993.0,0.08577727]
[1723750788128,0.008991,56994.0,56993.0,0.25733181]
[1723750788326,0.008991,56994.0,56993.0,0.48907189]
[1723750788525,0.008991,56994.0,56993.0,0.31361189]
[1723750788795,0.008991,56994.0,56993.0,0.48907189]
[1723750789196,0.009031,57000.0,56993.0,0.48907189]
[1723750789197,0.009031,57000.0,56998.0,0.526333]
[1723750789330,0.009031,57000.0,56998.0,0.60288784]
[1723750789575,0.009031,57000.0,56998.0,1.18104924]
[1723750789775,0.00883887,57001.0,57000.0,0.526315]
[1723750790048,0.00883887,57001.0,57000.0,0.93683803]
[1723750790161,0.00883887,57001.0,57000.0,1.33954343]
[1723750790567,0.51466362,57019.0,57001.0,0.0518284]
[1723750790777,0.51466362,57019.0,57017.0,0.08577727]
[1723750790978,0.175368,57023.0,57017.0,0.08577727]
[1723750791238,0.350728,57025.0,57017.0,0.27109238]
[1723750791484,0.175342,57032.0,57017.0,0.27109238]
[1723750791684,0.175351,57029.0,57017.0,0.27109238]
[1723750791882,0.350677,57033.0,57017.0,0.44647838]
[1723750792130,0.350677,57033.0,57017.0,0.27109238]
[1723750792329,0.175353,57028.0,57017.0,0.27109238]
[1723750792574,0.701317,57036.0,57017.0,0.44747838]
[1723750792782,0.87432063,57039.0,57017.0,0.44747838]
[1723750792783,0.52368363,57039.0,57017.0,0.08677727]
[1723750792994,0.175377,57020.0,57017.0,0.08577727]
[1723750793174,0.350756,57027.0,57017.0,0.25733181]
[1723750793361,0.350732,57024.0,57017.0,0.25733181]
[1723750793563,4e-05,57027.0,57017.0,0.25733181]
[1723750794214,4e-05,57027.0,57017.0,0.43621895]
[1723750794437,0.3614442,57058.0,57042.0,1.4297]
[1723750794438,0.0109192,57058.0,57042.0,1.4297]
[1723750794623,0.51466362,57054.0,57049.0,0.08577727]
[1723750794819,0.0109192,57058.0,57049.0,0.08577727]
[1723750795457,0.175284,57050.0,57049.0,0.08577727]
[1723750795656,0.0109192,57058.0,57049.0,0.08577727]
[1723750795867,0.0109192,57058.0,57055.0,0.08577727]
[1723750796608,0.0109192,57058.0,57055.0,0.25733181]
[1723750796821,0.0109192,57058.0,57055.0,0.11151045]
[1723750797030,0.0109192,57058.0,57055.0,0.08577727]
[1723750797031,0.184264,57056.0,57055.0,0.08577727]
[1723750797443,0.534796,57056.0,57055.0,0.08577727]
[1723750797644,0.008998,57056.0,57055.0,0.08577727]
[1723750797778,0.175168,57088.0,57056.0,0.3947]
[1723750797977,0.350318,57091.0,57078.0,0.08577727]
[1723750798179,0.51466362,57099.0,57078.0,1.01222981]
[1723750798180,0.175138,57098.0,57078.0,1.01222981]
[1723750798359,0.0022177,57101.0,57078.0,0.66547727]
[1723750798570,0.765458,57085.0,57078.0,0.08577727]
[1723750798788,0.4151,57085.0,57078.0,0.08577727]
[1723750798993,0.175175,57086.0,57078.0,0.08577727]
[1723750799211,0.0022177,57101.0,57078.0,0.43352981]
[1723750799412,0.0022177,57101.0,57078.0,1.22197979]
[1723750799413,0.175144,57096.0,57078.0,1.22197979]
[1723750799617,0.7027347,57101.0,57078.0,1.22197979]
[1723750799618,0.175142,57097.0,57078.0,1.57237679]
[1723750799823,0.350278,57098.0,57078.0,1.22097979]
[1723750800026,0.3524747,57101.0,57078.0,1.22097979]
[1723750800228,0.3524747,57101.0,57078.0,1.75927679]
[1723750800491,0.3524747,57101.0,57078.0,1.91808805]
[1723750800706,0.0022177,57101.0,57078.0,1.91908805]
[1723750801065,0.350274,57099.0,57078.0,1.91908805]
[1723750801270,0.17530631,57090.0,57078.0,0.84093181]
[1723750801471,0.17530631,57090.0,57078.0,1.36652681]
[1723750801472,0.00014431,57090.0,57078.0,1.36652681]
[1723750801749,0.00014431,57090.0,57078.0,2.12613207]
[1723750802006,0.00014431,57090.0,57078.0,0.65573181]
[1723750802222,0.00014431,57090.0,57068.0,0.40227727]
[1723750802223,0.18296634,57079.0,57068.0,0.08577727]
[1723750802432,0.0114118,57079.0,57068.0,0.08577727]
[1723750802613,0.0114118,57079.0,57074.0,0.08577727]
[1723750802847,0.1866078,57079.0,57078.0,0.014]
[1723750803054,0.0114118,57079.0,57078.0,0.18538653]
[1723750803274,0.0114118,57079.0,57078.0,0.42489092]
[1723750803480,0.0114118,57079.0,57074.0,0.46097727]
[1723750803481,0.0113718,57079.0,57074.0,0.08577727]
[1723750804101,0.175208,57075.0,57074.0,0.08577727]
[1723750804519,0.3617658,57079.0,57074.0,0.08577727]
[1723750804747,0.175208,57075.0,57074.0,0.08577727]
[1723750804940,0.175203,57077.0,57074.0,0.08577727]
[1723750805146,0.3617648,57079.0,57074.0,0.08577727]
[1723750805147,0.001,57079.0,57074.0,0.08577727]
[1723750805478,0.001,57079.0,57075.0,0.17505166]
[1723750805711,0.002,57079.0,57076.0,0.02608289]
[1723750805912,0.00014431,57090.0,57077.0,0.17505153]
[1723750806117,0.00014431,57090.0,57089.0,0.1881]
[1723750806320,0.00014431,57090.0,57089.0,0.95460352]
[1723750806524,0.3845,57111.0,57090.0,0.350321]
[1723750806525,0.175113,57106.0,57090.0,0.350321]
[1723750806716,0.175109,57108.0,57103.0,0.08577727]
[1723750807075,0.23708301,57111.0,57103.0,0.08577727]
[1723750807257,0.565,57146.0,57110.0,0.1907]
[1723750807258,0.350166,57116.0,57110.0,0.1907]
[1723750807459,0.2176198,57137.0,57109.0,0.08577727]
[1723750807460,0.175086,57115.0,57109.0,0.08577727]
[1723750807658,0.350174,57115.0,57109.0,0.08577727]
[1723750808090,0.359177,57114.0,57109.0,0.08577727]
[1723750808310,0.008998,57114.0,57109.0,0.08577727]
[1723750808559,0.009998,57114.0,57113.0,0.350182]
[1723750808774,0.008998,57114.0,57113.0,0.81432892]
[1723750808993,0.008998,57114.0,57113.0,0.91432892]
[1723750809243,0.009998,57114.0,57110.0,0.5665]
[1723750809447,0.008998,57114.0,57111.0,0.17155454]
[1723750809689,0.008998,57114.0,57113.0,0.176091]
[1723750809895,0.009998,57114.0,57113.0,0.001]
[1723750810118,0.009998,57114.0,57113.0,0.17255454]
[1723750810327,0.009998,57114.0,57113.0,0.001]
[1723750810758,0.535262,57114.0,57113.0,0.00084193]
[1723750810985,0.008998,57114.0,57110.0,0.3958]
[1723750811184,0.008998,57114.0,57113.0,0.34664554]
[1723750811408,0.009998,57114.0,57113.0,0.17155454]
[1723750811620,0.008998,57114.0,57113.0,0.69682754]
[1723750811841,0.009998,57114.0,57113.0,1.16966579]
[1723750812063,0.009998,57114.0,57113.0,0.29421079]
[1723750812281,0.008998,57114.0,57113.0,0.56930179]
[1723750812485,0.008998,57114.0,57113.0,1.45586579]
[1723750812921,0.008998,57114.0,57113.0,2.07104779]
[1723750813146,0.008998,57114.0,57113.0,2.48814779]
[1723750813375,0.008998,57133.0,57109.0,0.08577727]
[1723750813376,0.4068,57132.0,57109.0,0.08577727]
[1723750813628,0.4068,57132.0,57097.0,0.08577727]
[1723750813629,0.1951,57111.0,57097.0,0.08577727]
[1723750813843,0.525393,57100.0,57099.0,0.51466362]
[1723750814049,0.3877,57099.0,57077.0,0.4153]
[1723750814266,0.1951,57111.0,57093.0,0.51466362]
[1723750814267,0.3877,57107.0,57093.0,0.51466362]
[1723750814469,0.350292,57096.0,57088.0,0.08577727]
[1723750814677,0.175146,57095.0,57094.0,0.08577727]
[1723750815169,0.175146,57095.0,57074.0,0.43619527]
[1723750815170,0.19455454,57095.0,57075.0,0.51466362]
[1723750815382,0.875917,57083.0,57082.0,0.08677727]
[1723750815597,0.175183,57083.0,57082.0,0.08577727]
[1723750815803,0.350356,57085.0,57082.0,0.08577727]
[1723750816018,0.19455454,57084.0,57074.0,0.08577727]
[1723750816241,0.87604,57075.0,57074.0,0.08577727]
[1723750816455,0.3877,57091.0,57074.0,0.08577727]
[1723750816456,0.350223,57107.0,57080.0,0.08577727]
[1723750816663,0.01,57121.0,57095.0,0.568144]
[1723750816664,0.175104,57109.0,57095.0,0.568144]
[1723750816869,0.51466362,57121.0,57115.0,0.08577727]
[1723750816870,0.175082,57116.0,57115.0,0.08577727]
[1723750817082,0.525246,57116.0,57115.0,0.08577727]
[1723750817302,0.1988,57124.0,57106.0,0.08577727]
[1723750817303,0.175109,57108.0,57106.0,0.08577727]
[1723750817511,0.175128,57101.0,57100.0,0.08577727]
[1723750817709,0.17155454,57116.0,57100.0,0.08577727]
[1723750817949,0.3875,57115.0,57114.0,0.08577727]
[1723750818159,0.35016,57117.0,57114.0,0.08577727]
[1723750818374,0.175085,57115.0,57114.0,0.08577727]
[1723750818588,0.189083,57116.0,57114.0,0.08577727]
[1723750818792,0.350086,57129.0,57114.0,0.08577727]
[1723750819001,0.350098,57127.0,57122.0,0.08577727]
[1723750819207,0.3759,57132.0,57122.0,0.08577727]
[1723750819208,0.350075,57131.0,57122.0,0.08577727]
[1723750819414,0.3759,57132.0,57128.0,0.08577727]
[1723750819636,0.175009,57140.0,57128.0,0.48107727]
[1723750819839,0.3759,57148.0,57129.0,0.08577727]
[1723750819840,0.175039,57130.0,57129.0,0.08577727]
[1723750820059,0.350089,57129.0,57121.0,0.08577727]
[1723750820266,0.3867,57132.0,57121.0,0.08577727]
[1723750820267,0.17155454,57128.0,57121.0,0.08577727]
[1723750820532,0.17155454,57128.0,57107.0,0.08577727]
[1723750820533,0.186,57126.0,57107.0,0.08577727]
[1723750820745,0.17155454,57125.0,57114.0,0.08577727]
[1723750820949,0.175085,57115.0,57114.0,0.08577727]
[1723750821215,0.525255,57115.0,57114.0,0.08577727]
[1723750821436,0.17155454,57125.0,57114.0,0.08577727]
[1723750821650,0.700242,57123.0,57122.0,0.08677727]
[1723750821854,0.186,57134.0,57122.0,0.08577727]
[1723750822067,0.175056,57125.0,57122.0,0.08577727]
[1723750822282,0.17155454,57131.0,57128.0,0.08577727]
[1723750822493,0.008998,57133.0,57128.0,0.08577727]
[1723750823793,0.17155454,57132.0,57122.0,0.08677727]
[1723750824444,0.875302,57123.0,57122.0,0.001]
[1723750824651,0.38686766,57123.0,57108.0,0.51466362]
[1723750824864,0.175088,57114.0,57113.0,0.08577727]
[1723750825277,0.525264,57114.0,57113.0,0.08577727]
[1723750825486,0.87544,57114.0,57113.0,0.08577727]
[1723750826027,1.06999454,57114.0,57113.0,0.08577727]
[1723750826230,1.07999454,57114.0,57113.0,0.08677727]
[1723750826590,1.08591133,57114.0,57113.0,0.08577727]
[1723750826792,0.73573533,57114.0,57113.0,0.08577727]
[1723750826993,1.08591133,57114.0,57113.0,0.08577727]
[1723750827207,0.1,57128.0,57113.0,0.08577727]
[1723750827460,0.757277,57131.0,57113.0,0.08577727]
[1723750827461,0.17155454,57127.0,57121.0,0.08577727]
[1723750827671,0.175061,57123.0,57121.0,0.08577727]
[1723750827896,0.17155454,57127.0,57121.0,0.08577727]
[1723750828108,0.17155454,57127.0,57113.0,0.08677727]
[1723750828109,0.350127,57122.0,57113.0,0.08677727]
[1723750828326,0.175102,57110.0,57108.0,0.51466362]
[1723750828538,0.175102,57110.0,57107.0,0.08577727]
[1723750828539,0.525255,57115.0,57114.0,0.08577727]
[1723750828784,0.89134269,57115.0,57114.0,0.08577727]
[1723750829433,0.01591769,57115.0,57114.0,0.08577727]
[1723750829641,0.54117269,57115.0,57114.0,0.08577727]
[1723750829846,0.01691769,57115.0,57114.0,0.08577727]
[1723750830078,0.001,57115.0,57114.0,0.08577727]
[1723750830523,0.349998,57144.0,57114.0,0.08577727]
[1723750830524,0.02870372,57131.0,57114.0,0.66061944]
[1723750830732,0.6098198,57137.0,57130.0,0.08577727]
[1723750830733,0.4277198,57137.0,57130.0,0.08577727]
[1723750830942,0.01592532,57132.0,57130.0,0.08577727]
[1723750831395,0.0205198,57137.0,57131.0,0.3772]
[1723750832032,0.016998,57133.0,57131.0,0.3772]
[1723750832440,0.00424103,57132.0,57130.0,0.08577727]
[1723750832621,0.175036,57131.0,57130.0,0.08577727]
[1723750832850,0.008998,57133.0,57131.0,0.003]
[1723750833067,0.008998,57133.0,57130.0,0.08577727]
[1723750833288,0.008958,57133.0,57130.0,0.08577727]
[1723750833494,0.175035,57132.0,57130.0,0.08577727]
[1723750833699,0.175036,57131.0,57130.0,0.08577727]
[1723750833939,0.175054,57125.0,57124.0,0.08577727]
[1723750834142,0.175054,57125.0,57107.0,0.60044089]
[1723750834143,0.20498473,57125.0,57107.0,0.97764089]
[1723750834350,0.1,57130.0,57107.0,0.97764089]
[1723750834351,0.175085,57115.0,57107.0,0.97764089]
[1723750834557,0.19100979,57115.0,57107.0,0.97764089]
[1723750834759,0.01592479,57115.0,57107.0,0.46297727]
[1723750834962,0.01592479,57123.0,57107.0,0.46297727]
[1723750835197,0.175066,57121.0,57120.0,0.08577727]
[1723750835410,0.71267833,57121.0,57120.0,0.08577727]
[1723750835620,0.35014,57120.0,57107.0,0.46297727]
[1723750835828,0.175079,57117.0,57116.0,0.08577727]
[1723750836034,0.175079,57117.0,57107.0,0.46297727]
[1723750836035,0.525319,57108.0,57107.0,0.08577727]
[1723750836237,0.19103079,57108.0,57107.0,0.08577727]
[1723750836471,0.01565974,57108.0,57107.0,0.08577727]
[1723750836681,0.175106,57109.0,57107.0,0.08577727]
[1723750836919,0.02871667,57117.0,57107.0,0.08577727]
[1723750837123,0.3834,57126.0,57117.0,0.08577727]
[1723750837124,0.175074,57119.0,57117.0,0.08577727]
[1723750837331,0.175076,57118.0,57117.0,0.08577727]
[1723750837533,0.17155454,57118.0,57107.0,0.08577727]
[1723750837756,0.011,57121.0,57120.0,0.001]
[1723750837960,0.18255454,57121.0,57120.0,0.001]
[1723750838184,0.875395,57117.0,57116.0,0.08577727]
[1723750838389,0.525237,57117.0,57116.0,0.08577727]
[1723750838616,0.175079,57117.0,57116.0,0.08577727]
[1723750838865,0.01,57119.0,57117.0,0.6044]
[1723750839098,0.01,57119.0,57118.0,0.24409373]
[1723750839332,0.014,57121.0,57120.0,0.52521]
[1723750839568,0.014,57121.0,57120.0,1.04690454]
[1723750839803,0.014,57121.0,57120.0,1.95169908]
[1723750840006,0.014,57121.0,57120.0,1.60155908]
[1723750840482,0.014,57121.0,57120.0,1.25141908]
[1723750840707,0.350046,57136.0,57120.0,0.90127908]
[1723750840708,0.183989,57133.0,57120.0,0.90127908]
[1723750840934,0.183989,57133.0,57132.0,0.08577727]
[1723750841156,0.183989,57133.0,57126.0,0.08577727]
[1723750841157,0.175048,57127.0,57126.0,0.08577727]
[1723750841370,0.175048,57127.0,57113.0,0.3831]
[1723750841371,0.17155454,57127.0,57113.0,0.3831]
[1723750841590,0.69670054,57127.0,57126.0,0.08577727]